bitfinex-derivatives/quotes_ETHF0:USTF0_20230902
["timestamp","ask_amount","ask_price","bid_price","bid_amount"]
[1693641756149,20.02450557,1631.9,1631.8,9.95759843]
[1693641756352,17.72578557,1631.9,1631.8,9.95759843]
[1693641757049,20.59294909,1631.9,1631.8,9.95759843]
[1693641757247,18.29422909,1631.9,1631.8,9.95756843]
[1693641757450,17.72577557,1631.9,1631.8,9.95756843]
[1693641757648,20.59293909,1631.9,1631.8,9.95756843]
[1693641757951,17.72577557,1631.9,1631.8,9.95756843]
[1693641758254,20.02448557,1631.9,1631.8,9.95758843]
[1693641758446,17.72577557,1631.9,1631.8,9.95758843]
[1693641759247,10.37836557,1631.9,1631.8,26.85416843]
[1693641759463,8.84800707,1632.1,1632.0,10.0]
[1693641759754,8.78288935,1632.1,1632.0,20.19094564]
[1693641760055,8.17018935,1632.1,1632.0,20.19094564]
[1693641760352,0.41247075,1632.1,1632.0,20.19094564]
[1693641760554,0.11261648,1632.1,1632.0,20.19094564]
[1693641760756,0.11261531,1632.1,1632.0,20.19094564]
[1693641760946,0.11261531,1632.2,1632.0,20.19094564]
[1693641761253,1.55033179,1632.3,1632.0,20.19094564]
[1693641761561,0.93773179,1632.3,1632.2,0.54984]
[1693641761853,1.05034697,1632.3,1632.2,12.06867435]
[1693641762055,0.43774697,1632.3,1632.2,12.06867435]
[1693641762350,5.03404697,1632.3,1632.2,9.77038435]
[1693641763256,0.43774697,1632.3,1632.2,12.06865435]
[1693641763654,2.73590697,1632.3,1632.2,12.06865435]
[1693641764057,2.73590697,1632.3,1632.2,9.77035435]
[1693641764250,5.03406697,1632.3,1632.2,9.77035435]
[1693641765156,0.43774697,1632.3,1632.2,12.06870435]
[1693641765355,5.03406697,1632.3,1632.2,9.77040435]
[1693641765554,5.03406697,1632.3,1632.2,9.77037435]
[1693641771860,7.90123049,1632.3,1632.2,10.26934166]
[1693641772361,5.03406697,1632.3,1632.2,10.26934166]
[1693641781978,5.51876984,1632.3,1632.2,10.26934166]
[1693641782882,10.68411336,1632.3,1632.2,7.86429166]
[1693641783479,10.68411336,1632.3,1632.2,7.97106166]
[1693641783685,7.33224697,1632.3,1632.2,7.97106166]
[1693641785183,10.19941049,1632.3,1632.2,7.97106166]
[1693641786081,7.33224697,1632.3,1632.2,7.97106166]
[1693641786380,10.19941049,1632.3,1632.2,7.97106166]
[1693641787183,7.33224697,1632.3,1632.2,7.97106166]
[1693641787481,10.19941049,1632.3,1632.2,7.86429166]
[1693641788280,7.33224697,1632.3,1632.2,7.97106166]
[1693641788481,10.19941049,1632.3,1632.2,7.86429166]
[1693641791183,10.19941049,1632.3,1632.2,7.97106166]
[1693641791786,10.19941049,1632.3,1632.2,7.86429166]
[1693641793786,10.19941049,1632.3,1632.2,7.97106166]
[1693641794185,10.19941049,1632.3,1632.2,7.86429166]
[1693641794888,10.19941049,1632.3,1632.2,7.97106166]
[1693641795190,10.19941049,1632.3,1632.2,7.86429166]
[1693641795990,10.19941049,1632.3,1632.2,7.97106166]
[1693641796190,10.19941049,1632.3,1632.2,7.86429166]
[1693641797991,7.33224697,1632.3,1632.2,7.97106166]
[1693641798489,10.19941049,1632.3,1632.2,7.97106166]
[1693641799393,10.19941049,1632.3,1632.2,7.86429166]
[1693641801495,19.0306993,1632.3,1632.2,7.86429166]
[1693641802896,21.3288793,1632.3,1632.2,7.86429166]
[1693641804790,21.3288793,1632.3,1632.2,7.97106166]
[1693641806797,21.3288793,1632.3,1632.2,7.86429166]
[1693641808399,21.3901793,1632.3,1632.2,7.86429166]
[1693641808594,0.0613,1632.2,1632.0,1.4032751]
[1693641808787,11.78947518,1632.1,1631.8,6.89626]
[1693641808987,0.11261518,1632.0,1631.8,4.5975]
[1693641809192,4.59736,1631.9,1631.8,4.5975]
[1693641809392,7.5771387,1631.9,1631.8,4.5975]
[1693641809591,7.5771387,1631.9,1631.8,11.7237618]
[1693641809792,12.14575518,1631.9,1631.8,9.4250118]
[1693641809998,12.14575518,1631.9,1631.8,9.4250818]
[1693641810197,12.14575518,1631.9,1631.8,11.7239018]
[1693641811292,12.14575518,1631.9,1631.8,12.20253176]
[1693641812991,12.14575518,1631.9,1631.8,12.30930176]
[1693641813201,6.39585518,1631.9,1631.8,12.30930176]
[1693641813402,9.2630187,1631.9,1631.8,12.30930176]
[1693641813596,5.78305518,1631.9,1631.8,12.30930176]
[1693641813996,7.00865518,1631.9,1631.8,12.30930176]
[1693641814201,9.8758187,1631.9,1631.8,12.30930176]
[1693641814401,9.2630187,1631.9,1631.8,12.30930176]
[1693641814799,8.6502187,1631.9,1631.8,12.20253176]
[1693641814999,8.6502187,1631.9,1631.8,12.30930176]
[1693641815301,7.00865518,1631.9,1631.8,12.30930176]
[1693641815700,6.39585518,1631.9,1631.8,12.30930176]
[1693641815997,6.39585518,1631.9,1631.8,12.20253176]
[1693641816201,6.39585518,1631.9,1631.8,12.30930176]
[1693641816202,5.78305518,1631.9,1631.8,12.30930176]
[1693641816601,6.89604,1631.9,1631.8,12.30930176]
[1693641817003,6.28324,1631.9,1631.8,12.30930176]
[1693641817505,9.15040352,1631.9,1631.8,12.30930176]
[1693641817906,5.67044,1631.9,1631.8,12.30930176]
[1693641818306,8.53760352,1631.9,1631.8,12.30930176]
[1693641818607,8.53760352,1631.9,1631.8,12.20253176]
[1693641818808,9.76320352,1631.9,1631.8,12.30930176]
[1693641819204,9.15040352,1631.9,1631.8,12.30930176]
[1693641819503,8.53760352,1631.9,1631.8,12.30930176]
[1693641819909,9.76320352,1631.9,1631.8,12.30930176]
[1693641820207,9.76320352,1631.9,1631.8,12.20253176]
[1693641820412,9.15040352,1631.9,1631.8,12.20253176]
[1693641820605,9.15040352,1631.9,1631.8,9.90371176]
[1693641820805,8.53760352,1631.9,1631.8,10.01048176]
[1693641821212,12.35350352,1631.9,1631.8,10.01048176]
[1693641821507,12.35350352,1631.9,1631.8,7.60489176]
[1693641822205,9.48634,1631.9,1631.8,8.32446176]
[1693641822405,12.35350352,1631.9,1631.8,7.60489176]
[1693641822608,11.74070352,1631.9,1631.8,7.60489176]
[1693641823003,11.12790352,1631.9,1631.8,8.32446176]
[1693641823309,11.12790352,1631.9,1631.8,7.60489176]
[1693641823509,12.35350352,1631.9,1631.8,7.60489176]
[1693641823808,14.71348352,1631.9,1631.8,7.60489176]
[1693641835315,14.71348352,1631.9,1631.8,1.02844996]
[1693641836011,0.0613,1631.8,1631.5,2.29912]
[1693641836217,8.0217896,1631.6,1631.5,2.29912]
[1693641836516,8.0217896,1631.6,1631.5,3.03163277]
[1693641836517,17.33075538,1631.6,1631.5,3.03163277]
[1693641836716,19.83655538,1631.6,1631.5,3.03163277]
[1693641836915,19.83655538,1631.6,1631.5,3.35020617]
[1693641838110,19.22365538,1631.6,1631.5,4.06977617]
[1693641838306,19.22365538,1631.6,1631.5,5.00714395]
[1693641838511,18.61075538,1631.6,1631.5,7.30638395]
[1693641839017,21.4779189,1631.6,1631.5,7.30638395]
[1693641840318,18.61075538,1631.6,1631.5,7.30638395]
[1693641843514,21.4779189,1631.6,1631.5,6.58681395]
[1693641844214,21.4779189,1631.6,1631.5,7.30638395]
[1693641844918,21.4779189,1631.6,1631.5,6.58681395]
[1693641845120,21.4779189,1631.6,1631.5,4.28757395]
[1693641846615,20.8650189,1631.6,1631.5,4.28757395]
[1693641846818,17.99785538,1631.6,1631.5,5.00714395]
[1693641847120,17.38495538,1631.6,1631.5,5.00714395]
[1693641847422,16.77205538,1631.6,1631.5,5.00714395]
[1693641847721,19.6392189,1631.6,1631.5,5.00714395]
[1693641847920,19.0263189,1631.6,1631.5,5.00714395]
[1693641848321,15.54625538,1631.6,1631.5,5.00714395]
[1693641848719,17.8005189,1631.6,1631.5,5.00714395]
[1693641849121,14.32045538,1631.6,1631.5,5.00714395]
[1693641849424,17.1876189,1631.6,1631.5,5.00714395]
[1693641849625,16.5747189,1631.6,1631.5,2.70802395]
[1693641850028,15.9618189,1631.6,1631.5,1.98845395]
[1693641850527,15.6911189,1631.6,1631.5,1.98845395]
[1693641857224,14.6819293,1631.6,1631.5,1.98845395]
[1693641863858,14.7432293,1631.6,1631.5,1.98845395]
[1693641885858,9.19744,1631.4,1631.2,8.62742]
[1693641886055,12.1778493,1631.3,1631.2,2.29955]
[1693641886357,12.1778493,1631.3,1631.2,8.86508263]
[1693641887352,12.1778493,1631.3,1631.2,9.76287699]
[1693641887557,11.5648493,1631.3,1631.2,9.76287699]
[1693641887757,11.5648493,1631.3,1631.2,7.46332699]
[1693641887954,13.6604493,1631.3,1631.2,7.46332699]
[1693641889762,13.6604493,1631.3,1631.2,7.94416002]
[1693641915287,13.6604493,1631.3,1631.2,1.37862739]
[1693641915581,13.6604493,1631.3,1631.1,4.59945]
[1693641915788,8.13563022,1631.2,1631.1,2.29969]
[1693641915987,19.6041667,1631.2,1631.1,2.29969]
[1693641916288,19.6041667,1631.2,1631.1,3.2040559]
[1693641917186,22.1742667,1631.2,1631.1,3.2040559]
[1693641918285,22.1742667,1631.2,1631.1,3.69653719]
[1693641920096,22.1742667,1631.2,1631.1,1.39684719]
[1693641920286,14.15128226,1631.2,1631.0,6.30082]
[1693641920594,2.9798093,1631.1,1631.0,2.29992]
[1693641920788,12.1789693,1631.1,1631.0,2.29992]
[1693641920988,12.1789693,1631.1,1631.0,9.65525598]
[1693641921188,12.1789693,1631.1,1631.0,10.14292922]
[1693641922092,12.1789693,1631.1,1631.0,12.44285922]
[1693641922392,11.5658693,1631.1,1631.0,14.67588343]
[1693641922894,10.9527693,1631.1,1631.0,10.14292922]
[1693641923293,10.3396693,1631.1,1631.0,10.14292922]
[1693641923893,9.7265693,1631.1,1631.0,13.01009274]
[1693641924293,9.7265693,1631.1,1631.0,10.71017274]
[1693641924490,9.7265693,1631.1,1631.0,7.84300922]
[1693641924687,12.1119693,1631.1,1631.0,7.84300922]
[1693641927092,12.1119693,1631.1,1631.0,10.14294922]
[1693641927896,12.1119693,1631.1,1631.0,7.84300922]
[1693641928293,12.1732693,1631.1,1631.0,7.84300922]
[1693641932803,12.1732693,1631.1,1631.0,10.71017274]
[1693641933097,12.1732693,1631.1,1631.0,10.7134467]
[1693641933299,12.1732693,1631.1,1631.0,7.84628318]
[1693641935899,12.1732693,1631.1,1631.0,10.7134467]
[1693641936993,11.64586,1631.1,1631.0,10.7134467]
[1693641937195,0.89599,1631.1,1631.0,29.9131667]
[1693641937402,2.71091,1631.1,1631.0,19.9131667]
[1693641937702,4.3976,1631.1,1631.0,29.9131667]
[1693641937902,4.3976,1631.1,1631.0,19.9131667]
[1693641938106,3.7845,1631.1,1631.0,29.9131667]
[1693641938298,3.7845,1631.1,1631.0,19.9131667]
[1693641938499,4.59958,1631.1,1631.0,19.9131667]
[1693641938702,4.59958,1631.1,1631.0,29.9131667]
[1693641938902,3.98648,1631.1,1631.0,19.9131667]
[1693641939205,3.98648,1631.1,1631.0,29.9131667]
[1693641939407,1.68669,1631.1,1631.0,29.9131667]
[1693641939600,3.98648,1631.1,1631.0,29.9131667]
[1693641939801,3.37338,1631.1,1631.0,29.9131667]
[1693641940301,4.59951,1631.2,1631.0,29.9131667]
[1693641940503,2.29979,1631.1,1631.0,29.9131667]
[1693641940796,6.89927,1631.2,1631.0,19.9131667]
[1693641940998,4.59949,1631.2,1631.0,19.9131667]
[1693641941207,6.28617,1631.2,1631.0,19.9131667]
[1693641941509,5.67317,1631.2,1631.0,19.9131667]
[1693641941906,6.89933,1631.2,1631.0,29.9131667]
[1693641942708,6.28633,1631.2,1631.0,19.9131667]
[1693641943206,5.67333,1631.2,1631.0,19.9131667]
[1693641943611,6.89934,1631.2,1631.0,29.9131667]
[1693641944009,5.81633031,1631.2,1631.0,29.9131667]
[1693641944910,6.89934,1631.2,1631.0,29.9131667]
[1693641945406,6.89934,1631.2,1631.0,19.9131667]
[1693641945605,6.28634,1631.2,1631.0,19.9131667]
[1693641946000,6.89934,1631.2,1631.0,19.9131667]
[1693641946205,6.89934,1631.2,1631.0,29.9131667]
[1693641946506,6.28634,1631.2,1631.0,29.9131667]
[1693641946897,5.67334,1631.2,1631.0,29.9131667]
[1693641947302,5.67334,1631.2,1631.0,19.9131667]
[1693641947303,6.89934,1631.2,1631.0,19.9131667]
[1693641947605,6.89934,1631.2,1631.0,29.9131667]
[1693641948103,6.28634,1631.2,1631.0,29.9131667]
[1693641948608,5.67334,1631.2,1631.0,29.9131667]
[1693641949010,6.89934,1631.2,1631.0,29.9131667]
[1693641949411,6.28634,1631.2,1631.0,29.9131667]
[1693641949800,5.67334,1631.2,1631.0,29.9131667]
[1693641950005,3.37356,1631.2,1631.0,29.9131667]
[1693641950204,4.59956,1631.2,1631.0,29.9131667]
[1693641950710,3.98656,1631.2,1631.0,29.9131667]
[1693641950911,6.89896,1631.3,1631.0,29.9131667]
[1693641951211,6.39863107,1631.3,1631.0,29.9131667]
[1693641953410,6.39863107,1631.3,1631.0,19.9131667]
[1693641953614,6.39863107,1631.3,1631.0,29.9131667]
[1693641954806,0.45292,1631.3,1631.0,29.9131667]
[1693641955007,4.1197,1631.4,1631.1,7.99300577]
[1693641955207,0.11266151,1631.3,1631.2,12.06600352]
[1693641955410,6.41923,1631.4,1631.2,18.54673552]
[1693641955608,3.5067,1631.4,1631.2,18.54673552]
[1693641956008,4.599,1631.4,1631.2,18.54673552]
[1693641956208,4.599,1631.4,1631.3,0.00325453]
[1693641956412,4.09866013,1631.4,1631.3,6.90199453]
[1693641956612,6.39819013,1631.4,1631.3,13.4672691]
[1693641956813,5.78519013,1631.4,1631.3,13.4672691]
[1693641957108,4.62688991,1631.5,1631.3,15.7668491]
[1693641957310,1.68643,1631.4,1631.3,18.63401262]
[1693641957510,3.98586,1631.4,1631.3,18.63401262]
[1693641958114,6.28529,1631.4,1631.3,16.33443262]
[1693641960014,8.80239,1631.4,1631.3,16.33443262]
[1693641960215,6.50296,1631.4,1631.3,16.33443262]
[1693641961216,8.80239,1631.4,1631.3,16.33443262]
[1693641962716,11.19639,1631.4,1631.3,16.33443262]
[1693641967422,11.13639,1631.4,1631.3,16.33443262]
[1693641968920,11.13639,1631.4,1631.3,17.73518063]
[1693641986135,11.1156822,1631.4,1631.3,17.73518063]
[1693641988242,10.8629822,1631.4,1631.3,17.73518063]
[1693641992441,10.5340822,1631.4,1631.3,17.73518063]
[1693641995241,13.99424009,1631.4,1631.3,13.13602063]
[1693641995441,13.99424009,1631.4,1631.3,15.43560063]
[1693641996642,10.5340822,1631.4,1631.3,17.73518063]
[1693641997143,12.8335122,1631.4,1631.3,15.43560063]
[1693641999438,13.99424009,1631.4,1631.3,12.56843711]
[1693642000845,12.8335122,1631.4,1631.3,15.43560063]
[1693642001341,13.99424009,1631.4,1631.3,15.43560063]
[1693642001542,12.8335122,1631.4,1631.3,15.43560063]
[1693642002141,13.99424009,1631.4,1631.3,15.43560063]
[1693642004850,12.8335122,1631.4,1631.3,15.43560063]
[1693642006954,13.99424009,1631.4,1631.3,15.43560063]
[1693642007852,13.99424009,1631.4,1631.3,13.13602063]
[1693642008952,13.99424009,1631.4,1631.3,15.43560063]
[1693642009949,12.8335122,1631.4,1631.3,15.43560063]
[1693642013252,12.8335122,1631.4,1631.3,15.43559063]
[1693642014148,12.8335122,1631.4,1631.3,13.13601063]
[1693642014453,13.99424009,1631.4,1631.3,13.13601063]
[1693642014654,12.8335122,1631.4,1631.3,13.13601063]
[1693642015253,13.99424009,1631.4,1631.3,7.96927711]
[1693642018158,13.99424009,1631.4,1631.3,10.83644063]
[1693642020355,13.99424009,1631.4,1631.3,7.96927711]
[1693642022055,13.56324009,1631.4,1631.3,7.96927711]
[1693642022257,13.56324009,1631.4,1631.3,10.83644063]
[1693642023961,13.67590873,1631.4,1631.3,10.83644063]
[1693642027363,12.03618084,1631.4,1631.3,10.83644063]
[1693642027767,4.82565084,1631.4,1631.3,17.73512063]
[1693642027968,7.12508084,1631.4,1631.3,17.73512063]
[1693642028268,7.12508084,1631.4,1631.3,15.43556063]
[1693642029668,4.82565084,1631.4,1631.3,15.43556063]
[1693642030269,4.82565084,1631.4,1631.3,17.73512063]
[1693642030465,7.12508084,1631.4,1631.3,17.73512063]
[1693642037774,4.82565084,1631.4,1631.3,17.73512063]
[1693642038372,7.12508084,1631.4,1631.3,17.73512063]
[1693642039675,7.12508084,1631.4,1631.3,15.43556063]
[1693642041584,7.12508084,1631.4,1631.3,17.73512063]
[1693642042385,7.12508084,1631.4,1631.3,15.43556063]
[1693642043185,7.12508084,1631.4,1631.3,17.73512063]
[1693642043884,4.82565084,1631.4,1631.3,17.73512063]
[1693642044986,4.82565084,1631.4,1631.3,15.43556063]
[1693642045696,4.82565084,1631.4,1631.3,17.73512063]
[1693642045990,4.82565084,1631.4,1631.3,15.43556063]
[1693642046397,4.82565084,1631.4,1631.3,17.73512063]
[1693642052290,7.31295084,1631.4,1631.3,17.73512063]
[1693642052695,7.31295084,1631.4,1631.3,15.43556063]
[1693642052901,8.20238184,1631.4,1631.3,15.43556063]
[1693642053706,10.74318184,1631.4,1631.3,15.43556063]
[1693642054598,10.74318184,1631.4,1631.3,17.73512063]
[1693642056503,8.84118916,1631.6,1631.3,35.57815465]
[1693642056701,0.11265299,1631.5,1631.3,37.87771465]
[1693642057099,0.11265299,1631.5,1631.3,38.18421465]
[1693642057395,6.72491299,1631.6,1631.5,10.0]
[1693642057602,6.83755791,1631.6,1631.5,19.76497352]
[1693642057906,3.92542791,1631.6,1631.5,28.52718425]
[1693642058095,0.11264492,1631.6,1631.5,28.53091983]
[1693642058300,1.79887492,1631.6,1631.5,28.53091983]
[1693642058701,9.2916,1631.7,1631.5,28.53091983]
[1693642059101,8.6787,1631.7,1631.5,28.53091983]
[1693642059504,8.0658,1631.7,1631.5,28.53091983]
[1693642059908,9.29167,1631.7,1631.5,28.53091983]
[1693642060407,8.67877,1631.7,1631.5,28.53091983]
[1693642061005,8.06587,1631.7,1631.5,28.53091983]
[1693642061209,10.01637,1631.7,1631.5,28.53091983]
[1693642061604,9.40347,1631.7,1631.5,28.53091983]
[1693642061999,8.79057,1631.7,1631.5,28.53091983]
[1693642062907,8.17767,1631.7,1631.5,28.53091983]
[1693642063706,7.16166,1631.7,1631.5,28.53091983]
[1693642064607,6.54876,1631.7,1631.5,28.53091983]
[1693642065007,5.93586,1631.7,1631.5,28.53091983]
[1693642065399,9.79006,1631.7,1631.5,28.53091983]
[1693642066403,9.17716,1631.7,1631.5,28.53091983]
[1693642066810,8.56426,1631.7,1631.5,28.53091983]
[1693642067102,7.49093,1631.7,1631.5,28.53091983]
[1693642067305,9.79006,1631.7,1631.5,28.53091983]
[1693642067608,9.17716,1631.7,1631.5,28.53091983]
[1693642068106,8.56426,1631.7,1631.5,28.53091983]
[1693642068506,7.95136,1631.7,1631.5,28.53091983]
[1693642069506,7.95136,1631.7,1631.5,29.01162504]
[1693642070408,7.33846,1631.7,1631.5,29.01162504]
[1693642070613,6.39846,1631.7,1631.5,29.01162504]
[1693642071313,5.78556,1631.7,1631.5,29.01162504]
[1693642071712,5.17266,1631.7,1631.5,29.01162504]
[1693642072713,4.55976,1631.7,1631.5,29.01162504]
[1693642073611,3.94686,1631.7,1631.5,29.01162504]
[1693642074014,3.33396,1631.7,1631.5,29.01162504]
[1693642074412,4.59826,1631.7,1631.5,29.01162504]
[1693642074807,3.98536,1631.7,1631.5,29.01162504]
[1693642075312,3.37246,1631.7,1631.5,29.01162504]
[1693642075713,4.59826,1631.7,1631.5,29.01162504]
[1693642076113,3.98536,1631.7,1631.5,29.01162504]
[1693642076611,4.28159,1631.7,1631.5,29.01162504]
[1693642077114,3.66869,1631.7,1631.5,29.01162504]
[1693642077314,4.92768,1631.8,1631.6,8.09279521]
[1693642077315,6.13507322,1631.8,1631.6,8.09279521]
[1693642077615,6.13507322,1631.8,1631.7,16.44953662]
[1693642077808,6.24771375,1631.8,1631.7,16.44953662]
[1693642078208,6.24771375,1631.8,1631.7,16.45325392]
[1693642079516,8.54664375,1631.8,1631.7,16.45325392]
[1693642080114,9.63817053,1631.8,1631.7,16.45325392]
[1693642080905,9.02537053,1631.8,1631.7,16.45325392]
[1693642081617,8.52867053,1631.8,1631.7,16.45325392]
[1693642081917,6.22974053,1631.8,1631.7,16.45325392]
[1693642082416,5.76754053,1631.8,1631.7,16.45325392]
[1693642083315,5.61694053,1631.8,1631.7,16.45325392]
[1693642083822,4.71044053,1631.8,1631.7,16.45325392]
[1693642084119,4.09764053,1631.8,1631.7,16.45325392]
[1693642084519,3.48484053,1631.8,1631.7,16.45325392]
[1693642085019,4.71050053,1631.8,1631.7,16.45325392]
[1693642085419,4.09770053,1631.8,1631.7,16.45325392]
[1693642085621,9.41334,1631.9,1631.7,18.75224392]
[1693642085821,8.80054,1631.9,1631.7,18.75224392]
[1693642088709,8.80054,1631.9,1631.7,29.65625827]
[1693642089122,8.80054,1631.9,1631.7,30.13462333]
[1693642090015,8.53239,1631.9,1631.7,30.13462333]
[1693642102829,8.06239,1631.9,1631.7,30.13462333]
[1693642114633,9.22311789,1631.9,1631.7,30.13462333]
[1693642115137,11.52195789,1631.9,1631.7,8.07149981]
[1693642115731,13.79189437,1631.9,1631.7,8.07149981]
[1693642116136,22.63510654,1631.9,1631.7,8.07149981]
[1693642116935,22.57989656,1631.9,1631.7,8.07149981]
[1693642118941,22.57989656,1631.9,1631.7,10.93866333]
[1693642119239,22.57989656,1631.9,1631.7,8.07149981]
[1693642120941,22.48989656,1631.9,1631.7,10.93866333]
[1693642125246,22.48989656,1631.9,1631.7,8.07149981]
[1693642135163,22.48989656,1631.9,1631.7,10.93866333]
[1693642136664,22.44082102,1631.9,1631.7,10.93866333]
[1693642143364,22.44082102,1631.9,1631.7,8.07149981]
[1693642146271,0.11264723,1631.8,1631.7,8.07149981]
[1693642146471,9.30800723,1631.8,1631.7,10.93866333]
[1693642169692,9.30800723,1631.8,1631.7,8.07149981]
[1693642170191,9.30800723,1631.8,1631.7,10.93866333]
[1693642173993,9.25893169,1631.8,1631.7,10.93866333]
[1693642174695,9.25893169,1631.8,1631.7,8.07149981]
[1693642175396,9.25893169,1631.8,1631.7,13.58949981]
[1693642176496,9.25893169,1631.8,1631.7,16.45666333]
[1693642181501,9.25893169,1631.8,1631.7,13.58949981]
[1693642182099,9.25893169,1631.8,1631.7,16.45666333]
[1693642185505,9.25893169,1631.8,1631.7,13.58949981]
[1693642185700,9.25893169,1631.8,1631.7,16.45666333]
[1693642190313,18.05191555,1631.8,1631.7,16.45666333]
[1693642196215,18.05191555,1631.8,1631.7,21.05462333]
[1693642196421,15.75307555,1631.8,1631.7,21.05462333]
[1693642196625,18.05191555,1631.8,1631.7,21.05462333]
[1693642196921,9.20985615,1631.8,1631.7,18.75564333]
[1693642204431,9.16078061,1631.8,1631.7,18.75564333]
[1693642206931,9.16078061,1631.8,1631.7,21.05462333]
[1693642207426,9.27342543,1631.8,1631.7,21.05462333]
[1693642209937,6.97458543,1631.8,1631.7,23.35360333]
[1693642210135,6.97458543,1631.8,1631.7,21.05462333]
[1693642210435,6.97458543,1631.8,1631.7,23.35360333]
[1693642210637,6.97458543,1631.8,1631.7,21.05462333]
[1693642210638,8.13531332,1631.8,1631.7,21.05462333]
[1693642211437,8.13531332,1631.8,1631.7,23.35360333]
[1693642211838,6.97458543,1631.8,1631.7,23.35360333]
[1693642212135,6.97458543,1631.8,1631.7,21.05462333]
[1693642212335,6.97458543,1631.8,1631.7,23.35360333]
[1693642213136,6.97458543,1631.8,1631.7,21.05462333]
[1693642213335,6.97458543,1631.8,1631.7,23.35360333]
[1693642213836,6.97458543,1631.8,1631.7,21.05462333]
[1693642214337,6.97458543,1631.8,1631.7,23.35360333]
[1693642214837,6.97458543,1631.8,1631.7,21.05462333]
[1693642219941,6.57458543,1631.8,1631.7,21.05462333]
[1693642220340,6.57458543,1631.8,1631.7,23.35360333]
[1693642220541,6.57458543,1631.8,1631.7,21.05462333]
[1693642223345,6.57458543,1631.8,1631.7,23.35360333]
[1693642224045,6.17458643,1631.8,1631.7,23.35360333]
[1693642224346,6.17458643,1631.8,1631.7,21.05462333]
[1693642226138,6.17458643,1631.8,1631.7,23.35360333]
[1693642226342,6.17458643,1631.8,1631.7,21.05462333]
[1693642227050,5.67908613,1631.8,1631.7,21.05462333]
[1693642227946,5.27908613,1631.8,1631.7,21.05462333]
[1693642228145,5.27908613,1631.8,1631.7,23.35360333]
[1693642229448,5.27908613,1631.8,1631.7,21.05462333]
[1693642229652,5.27908613,1631.8,1631.7,23.35360333]
[1693642230050,5.27908613,1631.8,1631.7,21.05462333]
[1693642230850,5.27908613,1631.8,1631.7,23.35360333]
[1693642231448,5.27908613,1631.8,1631.7,21.05462333]
[1693642231651,4.87908613,1631.8,1631.7,21.05462333]
[1693642231851,4.87908613,1631.8,1631.7,23.35360333]
[1693642232053,4.86003185,1631.8,1631.7,23.35360333]
[1693642232849,4.86003185,1631.8,1631.7,21.05462333]
[1693642234952,4.86003185,1631.8,1631.7,23.35360333]
[1693642237054,4.86003185,1631.8,1631.7,21.05462333]
[1693642238456,4.86003185,1631.8,1631.7,23.35360333]
[1693642238955,0.11264482,1631.8,1631.7,16.45666333]
[1693642245559,0.11264482,1631.9,1631.7,16.45666333]
[1693642245859,11.4582594,1632.0,1631.8,7.9001]
[1693642246061,0.11264017,1631.9,1631.8,7.9001]
[1693642246262,0.11264017,1631.9,1631.8,10.2943]
[1693642246452,0.11264017,1631.9,1631.8,17.21786758]
[1693642246657,0.11264017,1631.9,1631.8,20.0850311]
[1693642258159,0.11264017,1631.9,1631.8,20.08875397]
[1693642269784,0.11264017,1631.9,1631.8,24.68636397]
[1693642269785,7.00874017,1631.9,1631.8,24.68636397]
[1693642270381,9.30752017,1631.9,1631.8,24.68636397]
[1693642274179,6.89595,1632.0,1631.8,34.80204397]
[1693642274381,6.89595,1632.0,1631.9,5.518]
[1693642274382,2.26819468,1632.0,1631.9,5.518]
[1693642274682,2.02927772,1632.2,1632.1,6.89526]
[1693642274880,0.11261475,1632.2,1632.1,19.61658]
[1693642275077,6.39454475,1632.3,1632.2,2.86716352]
[1693642275273,6.50715995,1632.3,1632.2,12.41284]
[1693642275479,6.50715995,1632.3,1632.2,19.45817183]
[1693642275675,6.50715995,1632.3,1632.2,22.32533535]
[1693642284388,4.20889995,1632.3,1632.2,24.62361535]
[1693642284995,6.50715995,1632.3,1632.2,24.62361535]
[1693642286297,6.50715995,1632.3,1632.2,23.26681678]
[1693642287597,6.50715995,1632.3,1632.2,23.76658696]
[1693642288197,6.50715995,1632.3,1632.2,23.77027764]
[1693642299702,6.42605995,1632.3,1632.2,23.77027764]
[1693642301603,6.33605995,1632.3,1632.2,23.77027764]
[1693642305307,5.42169815,1632.3,1632.2,23.77027764]
[1693642307609,6.35462067,1632.3,1632.2,36.06855764]
[1693642308013,3.44376067,1632.3,1632.2,36.06855764]
[1693642308311,4.7091352,1632.3,1632.2,36.06855764]
[1693642308711,4.0965352,1632.3,1632.2,36.06855764]
[1693642309107,3.4839352,1632.3,1632.2,36.06855764]
[1693642309612,1.3931,1632.4,1632.3,5.518]
[1693642309808,14.91712996,1632.5,1632.4,2.86716352]
[1693642310010,17.32771525,1632.5,1632.4,12.412]
[1693642310212,14.75241525,1632.5,1632.4,15.81312519]
[1693642310412,12.45442525,1632.5,1632.4,18.11112519]
[1693642311009,11.34752525,1632.5,1632.4,18.11112519]
[1693642311210,9.96172525,1632.5,1632.4,18.11112519]
[1693642311511,3.92454525,1632.5,1632.4,18.11112519]
[1693642311912,6.89341,1632.6,1632.4,18.11112519]
[1693642312114,2.29786,1632.5,1632.4,12.59312519]
[1693642312316,4.59558,1632.6,1632.4,18.11112519]
[1693642312520,2.29786,1632.5,1632.4,12.59312519]
[1693642312711,3.62808647,1632.6,1632.4,18.11112519]
[1693642313017,5.62592647,1632.6,1632.5,13.52960145]
[1693642313316,5.73851937,1632.6,1632.5,29.38997537]
[1693642313615,5.73851937,1632.6,1632.5,31.94827537]
[1693642318114,7.29584,1632.7,1632.6,2.86716352]
[1693642318115,4.42569425,1632.7,1632.6,2.86716352]
[1693642318312,5.61515218,1632.8,1632.6,24.70888]
[1693642318511,5.61515218,1632.8,1632.6,26.28132961]
[1693642318512,6.89261,1632.8,1632.6,26.28132961]
[1693642318706,6.89261,1632.8,1632.7,2.86716352]
[1693642318908,7.0051916,1632.8,1632.7,9.75990352]
[1693642319109,2.29754,1632.8,1632.7,18.18233059]
[1693642319308,4.18508,1632.8,1632.7,20.66613059]
[1693642321912,2.29754,1632.8,1632.7,20.66613059]
[1693642322420,4.59508,1632.8,1632.7,20.66613059]
[1693642322621,4.59508,1632.8,1632.7,23.25853059]
[1693642324021,11.83968,1633.0,1632.8,11.036]
[1693642324225,9.40995001,1633.0,1632.9,15.27703352]
[1693642324520,9.5225213,1633.0,1632.9,24.79621546]
[1693642324723,7.00435129,1633.0,1632.9,24.79621546]
[1693642324926,4.70687129,1633.0,1632.9,27.09350546]
[1693642325225,2.40972129,1633.0,1632.9,27.09350546]
[1693642325421,4.70687129,1633.0,1632.9,27.09350546]
[1693642325617,2.40972129,1633.0,1632.9,27.09350546]
[1693642325816,2.40972129,1633.0,1632.9,29.47550546]
[1693642327425,0.11257129,1633.0,1632.9,29.47550546]
[1693642328321,0.05197129,1633.0,1632.9,29.47550546]
[1693642330627,2.29708,1633.1,1632.9,29.47550546]
[1693642330827,4.59416,1633.1,1633.0,12.40945]
[1693642331029,4.70671889,1633.1,1633.0,12.40945]